[Event "January 2 Late 2024"]
[Site "https://www.chess.com"]
[Date "2024.01.02"]
[Round "7"]
[White "Petre, Nad-Titus"]
[Black "Haydon, David L"]
[Result "1/2-1/2"]
[Board "89"]
[TimeControl "180+1"]
[WhiteFideId "1204165"]
[BlackFideId "415405"]
[WhiteElo "2475"]
[BlackElo "2651"]
[WhiteTeam "ROU"]
[BlackTeam "ENG"]
[WhiteClock "0:00:10"]
[BlackClock "0:00:08"]

1. e4 {[%clk 0:03:00]}  c6 {[%clk 0:03:00]} 2. d3 {[%clk 0:02:59]}  d5 {[%clk 0:03:01]} 3. Nf3 {[%clk 0:02:59]}  Bg4 {[%clk 0:03:00]} 4. Nbd2 {[%clk 0:02:55]}  Nf6 {[%clk 0:02:59]} 5. Be2 {[%clk 0:02:53]}  e6 {[%clk 0:02:58]} 6. O-O {[%clk 0:02:51]}  Qc7 {[%clk 0:02:57]} 7. exd5 {[%clk 0:02:50]}  cxd5 {[%clk 0:02:56]} 8. c4 {[%clk 0:02:50]}  Nc6 {[%clk 0:02:54]} 9. h3 {[%clk 0:02:42]}  Bh5 {[%clk 0:02:52]} 10. Nb3 {[%clk 0:02:37]}  dxc4 {[%clk 0:02:47]} 11. dxc4 {[%clk 0:02:35]}  Rd8 {[%clk 0:02:47]} 12. Qe1 {[%clk 0:02:24]}  Nb4 {[%clk 0:02:28]} 13. Nfd4 {[%clk 0:02:15]}  Bxe2 {[%clk 0:02:22]} 14. Qxe2 {[%clk 0:02:16]}  a6 {[%clk 0:02:20]} 15. Re1 {[%clk 0:01:58]}  Be7 {[%clk 0:02:17]} 16. g3 {[%clk 0:01:50]}  Nc6 {[%clk 0:02:11]} 17. Bf4 {[%clk 0:01:40]}  Nxd4 {[%clk 0:02:07]} 18. Nxd4 {[%clk 0:01:41]}  Qc5 {[%clk 0:01:59]} 19. Nb3 {[%clk 0:01:18]}  Qf5 {[%clk 0:01:57]} 20. Kh2 {[%clk 0:01:13]}  h5 {[%clk 0:01:51]} 21. Be5 {[%clk 0:01:05]}  O-O {[%clk 0:01:24]} 22. Nd4 {[%clk 0:00:58]}  Qg6 {[%clk 0:01:17]} 23. Rad1 {[%clk 0:00:55]}  Nd7 {[%clk 0:01:05]} 24. Bc7 {[%clk 0:00:48]}  Rde8 {[%clk 0:00:57]} 25. Nf3 {[%clk 0:00:41]}  Nf6 {[%clk 0:00:49]} 26. Bd6 {[%clk 0:00:35]}  Bxd6 {[%clk 0:00:47]} 27. Rxd6 {[%clk 0:00:36]}  Rd8 {[%clk 0:00:46]} 28. Red1 {[%clk 0:00:25]}  Rxd6 {[%clk 0:00:44]} 29. Rxd6 {[%clk 0:00:26]}  Rc8 {[%clk 0:00:43]} 30. b3 {[%clk 0:00:22]}  Qf5 {[%clk 0:00:34]} 31. Qd3 {[%clk 0:00:22]}  Ne4 {[%clk 0:00:17]} 32. Rd8+ {[%clk 0:00:21]}  Rxd8 {[%clk 0:00:15]} 33. Qxd8+ {[%clk 0:00:21]}  Kh7 {[%clk 0:00:16]} 34. Kg2 {[%clk 0:00:21]}  Nc5 {[%clk 0:00:14]} 35. Qd4 {[%clk 0:00:20]}  Nd3 {[%clk 0:00:14]} 36. a3 {[%clk 0:00:16]}  e5 {[%clk 0:00:14]} 37. Qe3 {[%clk 0:00:13]}  f6 {[%clk 0:00:10]} 38. Nd2 {[%clk 0:00:11]}  Nc1 {[%clk 0:00:09]} 39. b4 {[%clk 0:00:10]}  Qc2 {[%clk 0:00:06]} 40. Qe4+ {[%clk 0:00:10]}  Qxe4+ {[%clk 0:00:06]} 41. Nxe4 {[%clk 0:00:11]}  Nd3 {[%clk 0:00:06]} 42. c5 {[%clk 0:00:11]}  Ne1+ {[%clk 0:00:07]} 43. Kf1 {[%clk 0:00:11]}  Nc2 {[%clk 0:00:07]} 44. Nd6 {[%clk 0:00:11]}  Nxa3 {[%clk 0:00:07]} 45. Nxb7 {[%clk 0:00:12]}  Nb5 {[%clk 0:00:06]} 46. Nd6 {[%clk 0:00:10]}  Nc7 {[%clk 0:00:05]} 47. Ke2 {[%clk 0:00:08]}  Kg8 {[%clk 0:00:06]} 48. Kd3 {[%clk 0:00:08]}  Kf8 {[%clk 0:00:06]} 49. Kc4 {[%clk 0:00:09]}  g6 {[%clk 0:00:07]} 50. Ne4 {[%clk 0:00:08]}  Ke7 {[%clk 0:00:07]} 51. g4 {[%clk 0:00:08]}  hxg4 {[%clk 0:00:06]} 52. hxg4 {[%clk 0:00:09]}  Ke6 {[%clk 0:00:07]} 53. f3 {[%clk 0:00:09]}  f5 {[%clk 0:00:07]} 54. Nd6 {[%clk 0:00:07]}  fxg4 {[%clk 0:00:06]} 55. fxg4 {[%clk 0:00:08]}  Nd5 {[%clk 0:00:06]} 56. Ne4 {[%clk 0:00:07]}  Ne3+ {[%clk 0:00:05]} 57. Kb3 {[%clk 0:00:07]}  Nxg4 {[%clk 0:00:06]} 58. Ka4 {[%clk 0:00:07]}  Nf6 {[%clk 0:00:06]} 59. Ng5+ {[%clk 0:00:06]}  Kd7 {[%clk 0:00:06]} 60. Ka5 {[%clk 0:00:07]}  e4 {[%clk 0:00:07]} 61. Kxa6 {[%clk 0:00:06]}  e3 {[%clk 0:00:07]} 62. Nf3 {[%clk 0:00:06]}  e2 {[%clk 0:00:05]} 63. Kb7 {[%clk 0:00:06]}  Ne8 {[%clk 0:00:04]} 64. b5 {[%clk 0:00:06]}  Kd8 {[%clk 0:00:04]} 65. c6 {[%clk 0:00:06]}  Nd6+ {[%clk 0:00:05]} 66. Kb8 {[%clk 0:00:06]}  Nxb5 {[%clk 0:00:05]} 67. Nd4 {[%clk 0:00:06]}  Nc7 {[%clk 0:00:04]} 68. Nxe2 {[%clk 0:00:06]}  g5 {[%clk 0:00:04]} 69. Ng3 {[%clk 0:00:05]}  g4 {[%clk 0:00:04]} 70. Kb7 {[%clk 0:00:06]}  Nd5 {[%clk 0:00:04]} 71. Nf5 {[%clk 0:00:06]}  Ke8 {[%clk 0:00:04]} 72. Nd6+ {[%clk 0:00:06]}  Ke7 {[%clk 0:00:05]} 73. Ne4 {[%clk 0:00:07]}  Ke6 {[%clk 0:00:05]} 74. Ng3 {[%clk 0:00:07]}  Kd6 {[%clk 0:00:05]} 75. Nf5+ {[%clk 0:00:07]}  Ke5 {[%clk 0:00:06]} 76. Ng3 {[%clk 0:00:08]}  Kf4 {[%clk 0:00:06]} 77. Nh5+ {[%clk 0:00:08]}  Kf3 {[%clk 0:00:07]} 78. c7 {[%clk 0:00:08]}  Nxc7 {[%clk 0:00:07]} 79. Kxc7 {[%clk 0:00:09]}  Ke4 {[%clk 0:00:08]} 80. Nf6+ {[%clk 0:00:09]}  Kf5 {[%clk 0:00:08]} 81. Nxg4 {[%clk 0:00:10]} 1/2-1/2

[Event "January 2 Late 2024"]
[Site "https://www.chess.com"]
[Date "2024.01.02"]
[Round "7"]
[White "Toktomushev, Teimur"]
[Black "Palomo, Franklin Annervys"]
[Result "0-1"]
[Board "90"]
[TimeControl "180+1"]
[WhiteFideId "14176726"]
[BlackFideId "3906965"]
[WhiteElo "2466"]
[BlackElo "2650"]
[WhiteTeam "UKR"]
[BlackTeam "VEN"]
[WhiteClock "0:00:00"]
[BlackClock "0:01:25"]

1. d4 {[%clk 0:03:00]}  c5 {[%clk 0:02:59]} 2. d5 {[%clk 0:03:00]}  Nf6 {[%clk 0:03:00]} 3. c4 {[%clk 0:03:01]}  d6 {[%clk 0:03:00]} 4. Nc3 {[%clk 0:03:01]}  g6 {[%clk 0:03:01]} 5. Nf3 {[%clk 0:03:02]}  Bg7 {[%clk 0:03:02]} 6. e4 {[%clk 0:03:02]}  O-O {[%clk 0:03:02]} 7. Be2 {[%clk 0:03:03]}  e6 {[%clk 0:03:02]} 8. O-O {[%clk 0:03:01]}  exd5 {[%clk 0:03:03]} 9. cxd5 {[%clk 0:03:01]}  a6 {[%clk 0:03:03]} 10. a4 {[%clk 0:03:01]}  Re8 {[%clk 0:03:04]} 11. Nd2 {[%clk 0:03:02]}  Nbd7 {[%clk 0:03:02]} 12. h3 {[%clk 0:03:00]}  Qc7 {[%clk 0:03:01]} 13. a5 {[%clk 0:02:59]}  Rb8 {[%clk 0:02:54]} 14. Re1 {[%clk 0:02:50]}  b5 {[%clk 0:02:40]} 15. axb6 {[%clk 0:02:49]}  Rxb6 {[%clk 0:02:40]} 16. Nc4 {[%clk 0:02:45]}  Rb4 {[%clk 0:02:41]} 17. Bf1 {[%clk 0:02:46]}  Ne5 {[%clk 0:02:30]} 18. Nxe5 {[%clk 0:02:14]}  Rxe5 {[%clk 0:02:31]} 19. Bxa6 {[%clk 0:02:10]}  Nxe4 {[%clk 0:02:12]} 20. Bxc8 {[%clk 0:01:16]}  Qxc8 {[%clk 0:02:13]} 21. Nxe4 {[%clk 0:00:31]}  Rbxe4 {[%clk 0:02:14]} 22. Rxe4 {[%clk 0:00:31]}  Rxe4 {[%clk 0:02:13]} 23. Be3 {[%clk 0:00:18]}  Bxb2 {[%clk 0:01:57]} 24. Ra7 {[%clk 0:00:09]}  Be5 {[%clk 0:01:44]} 25. Qf3 {[%clk 0:00:07]}  Qf5 {[%clk 0:01:43]} 26. Qxf5 {[%clk 0:00:02]}  gxf5 {[%clk 0:01:44]} 27. g3 {[%clk 0:00:01]}  h5 {[%clk 0:01:34]} 28. Bh6 {[%clk 0:00:01]}  h4 {[%clk 0:01:31]} 29. Bg5 {[%clk 0:00:01]}  hxg3 {[%clk 0:01:31]} 30. fxg3 {[%clk 0:00:02]}  Bxg3 {[%clk 0:01:31]} 31. Kg2 {[%clk 0:00:02]}  Be5 {[%clk 0:01:32]} 32. Kf3 {[%clk 0:00:03]}  Rd4 {[%clk 0:01:32]} 33. h4 {[%clk 0:00:01]}  Rxd5 {[%clk 0:01:30]} 34. h5 {[%clk 0:00:02]}  Rd3+ {[%clk 0:01:31]} 35. Ke2 {[%clk 0:00:02]}  Rh3 {[%clk 0:01:28]} 36. h6 {[%clk 0:00:02]}  c4 {[%clk 0:01:27]} 37. Rc7 {[%clk 0:00:02]}  c3 {[%clk 0:01:26]} 38. Kd1 {[%clk 0:00:00]}  Kh7 {[%clk 0:01:25]} 0-1

[Event "January 2 Late 2024"]
[Site "https://www.chess.com"]
[Date "2024.01.02"]
[Round "7"]
[White "Karas, Marek"]
[Black "Spata, German"]
[Result "0-1"]
[Board "91"]
[TimeControl "180+1"]
[WhiteFideId "14928558"]
[BlackFideId "113026"]
[WhiteElo "2465"]
[BlackElo "2643"]
[WhiteTeam "CZE"]
[BlackTeam "ARG"]
[WhiteClock "0:00:00"]
[BlackClock "0:00:11"]

1. d4 {[%clk 0:03:00]}  Nf6 {[%clk 0:02:59]} 2. Nc3 {[%clk 0:02:59]}  g6 {[%clk 0:02:59]} 3. e4 {[%clk 0:02:58]}  d6 {[%clk 0:03:00]} 4. Be3 {[%clk 0:02:57]}  a6 {[%clk 0:02:56]} 5. a4 {[%clk 0:02:53]}  Bg7 {[%clk 0:02:55]} 6. h3 {[%clk 0:02:50]}  O-O {[%clk 0:02:54]} 7. Qd2 {[%clk 0:02:50]}  e5 {[%clk 0:02:53]} 8. dxe5 {[%clk 0:02:47]}  dxe5 {[%clk 0:02:53]} 9. Nf3 {[%clk 0:02:45]}  Nc6 {[%clk 0:02:50]} 10. Be2 {[%clk 0:02:35]}  Be6 {[%clk 0:02:48]} 11. Qxd8 {[%clk 0:02:22]}  Rfxd8 {[%clk 0:02:47]} 12. Ng5 {[%clk 0:02:20]}  Nb4 {[%clk 0:02:33]} 13. Rc1 {[%clk 0:01:40]}  Bd7 {[%clk 0:02:28]} 14. Bc4 {[%clk 0:01:35]}  Be8 {[%clk 0:02:26]} 15. Ke2 {[%clk 0:01:23]}  Nc6 {[%clk 0:02:19]} 16. Rhd1 {[%clk 0:01:02]}  Nd4+ {[%clk 0:02:19]} 17. Kf1 {[%clk 0:01:00]}  h6 {[%clk 0:02:14]} 18. Nf3 {[%clk 0:00:59]}  Nxf3 {[%clk 0:02:13]} 19. gxf3 {[%clk 0:00:59]}  Bf8 {[%clk 0:02:02]} 20. Nd5 {[%clk 0:00:56]}  Nxd5 {[%clk 0:01:58]} 21. Bxd5 {[%clk 0:00:53]}  c6 {[%clk 0:01:48]} 22. Bb3 {[%clk 0:00:53]}  Be7 {[%clk 0:01:37]} 23. Bb6 {[%clk 0:00:52]}  Rxd1+ {[%clk 0:01:30]} 24. Rxd1 {[%clk 0:00:52]}  Kf8 {[%clk 0:01:18]} 25. c3 {[%clk 0:00:49]}  a5 {[%clk 0:01:00]} 26. Bc4 {[%clk 0:00:46]}  f6 {[%clk 0:00:50]} 27. Ke2 {[%clk 0:00:46]}  g5 {[%clk 0:00:45]} 28. Be6 {[%clk 0:00:45]}  Ra6 {[%clk 0:00:42]} 29. Bc7 {[%clk 0:00:40]}  b5 {[%clk 0:00:37]} 30. Bf5 {[%clk 0:00:25]}  Ra7 {[%clk 0:00:27]} 31. Bb6 {[%clk 0:00:24]}  Ra6 {[%clk 0:00:27]} 32. Bc7 {[%clk 0:00:24]}  bxa4 {[%clk 0:00:28]} 33. Ra1 {[%clk 0:00:24]}  Ra7 {[%clk 0:00:27]} 34. Bb6 {[%clk 0:00:17]}  Rb7 {[%clk 0:00:27]} 35. Bxa5 {[%clk 0:00:18]}  Rxb2+ {[%clk 0:00:27]} 36. Kd3 {[%clk 0:00:09]}  a3 {[%clk 0:00:26]} 37. Bb4 {[%clk 0:00:07]}  Bxb4 {[%clk 0:00:23]} 38. cxb4 {[%clk 0:00:08]}  Rxf2 {[%clk 0:00:23]} 39. Bg4 {[%clk 0:00:06]}  a2 {[%clk 0:00:21]} 40. Ke3 {[%clk 0:00:05]}  Rb2 {[%clk 0:00:21]} 41. Be6 {[%clk 0:00:05]}  Bf7 {[%clk 0:00:20]} 42. Bxf7 {[%clk 0:00:03]}  Kxf7 {[%clk 0:00:21]} 43. Kd3 {[%clk 0:00:03]}  Ke6 {[%clk 0:00:17]} 44. Kc3 {[%clk 0:00:02]}  Rf2 {[%clk 0:00:17]} 45. Kc4 {[%clk 0:00:02]}  Kd6 {[%clk 0:00:16]} 46. Rd1+ {[%clk 0:00:01]}  Kc7 {[%clk 0:00:16]} 47. Ra1 {[%clk 0:00:02]}  Kb6 {[%clk 0:00:16]} 48. Kb3 {[%clk 0:00:02]}  Kb5 {[%clk 0:00:13]} 49. Ka3 {[%clk 0:00:02]}  Rxf3+ {[%clk 0:00:12]} 50. Kxa2 {[%clk 0:00:02]}  Rxh3 {[%clk 0:00:12]} 51. Rf1 {[%clk 0:00:02]}  Rh2+ {[%clk 0:00:11]} 52. Kb3 {[%clk 0:00:02]}  Rh3+ {[%clk 0:00:11]} 53. Kb2 {[%clk 0:00:02]}  Kxb4 {[%clk 0:00:11]} 54. Rxf6 {[%clk 0:00:02]}  c5 {[%clk 0:00:12]} 55. Rf5 {[%clk 0:00:02]}  Kc4 {[%clk 0:00:12]} 56. Rxe5 {[%clk 0:00:02]}  Kd4 {[%clk 0:00:12]} 57. Re7 {[%clk 0:00:02]}  c4 {[%clk 0:00:12]} 58. e5 {[%clk 0:00:02]}  Rh2+ {[%clk 0:00:12]} 59. Kb1 {[%clk 0:00:02]}  Kc3 {[%clk 0:00:11]} 60. e6 {[%clk 0:00:01]}  Rh1+ {[%clk 0:00:11]} 61. Ka2 {[%clk 0:00:02]}  Re1 {[%clk 0:00:12]} 62. Re8 {[%clk 0:00:02]}  Kc2 {[%clk 0:00:11]} 63. e7 {[%clk 0:00:02]}  c3 {[%clk 0:00:11]} 64. Rh8 {[%clk 0:00:01]}  Rxe7 {[%clk 0:00:11]} 65. Rxh6 {[%clk 0:00:00]}  Ra7+ {[%clk 0:00:11]} 0-1

[Event "January 2 Late 2024"]
[Site "https://www.chess.com"]
[Date "2024.01.02"]
[Round "7"]
[White "osh1ro"]
[Black "Lopusiewicz, Piotr"]
[Result "1-0"]
[Board "94"]
[TimeControl "180+1"]
[BlackFideId "1116029"]
[WhiteElo "2610"]
[BlackElo "2460"]
[BlackTeam "POL"]
[WhiteClock "0:00:03"]
[BlackClock "0:00:07"]

1. d4 {[%clk 0:03:00]}  Nf6 {[%clk 0:02:59]} 2. c4 {[%clk 0:03:01]}  e6 {[%clk 0:02:59]} 3. Nc3 {[%clk 0:03:01]}  d5 {[%clk 0:02:59]} 4. Nf3 {[%clk 0:03:01]}  c5 {[%clk 0:02:58]} 5. cxd5 {[%clk 0:03:01]}  exd5 {[%clk 0:02:59]} 6. g3 {[%clk 0:03:01]}  Nc6 {[%clk 0:02:58]} 7. Bg2 {[%clk 0:03:01]}  cxd4 {[%clk 0:02:58]} 8. Nxd4 {[%clk 0:03:02]}  Bc5 {[%clk 0:02:58]} 9. Nb3 {[%clk 0:02:52]}  Bb6 {[%clk 0:02:58]} 10. Nxd5 {[%clk 0:02:41]}  Be6 {[%clk 0:02:56]} 11. e4 {[%clk 0:02:26]}  Bg4 {[%clk 0:02:54]} 12. Qd2 {[%clk 0:01:51]}  Nxd5 {[%clk 0:02:14]} 13. Qxd5 {[%clk 0:01:45]}  Qxd5 {[%clk 0:02:13]} 14. exd5 {[%clk 0:01:45]}  Nb4 {[%clk 0:02:14]} 15. O-O {[%clk 0:01:44]}  Nc2 {[%clk 0:02:14]} 16. Rb1 {[%clk 0:01:43]}  Be2 {[%clk 0:02:14]} 17. d6 {[%clk 0:01:30]}  Bxf1 {[%clk 0:02:07]} 18. Bxb7 {[%clk 0:01:28]}  Bd3 {[%clk 0:01:15]} 19. Bc6+ {[%clk 0:01:19]}  Kd8 {[%clk 0:01:10]} 20. Bxa8 {[%clk 0:01:11]}  Kd7 {[%clk 0:01:11]} 21. Bg2 {[%clk 0:01:04]}  Nb4 {[%clk 0:01:05]} 22. Ra1 {[%clk 0:01:02]}  Nc2 {[%clk 0:01:05]} 23. Rb1 {[%clk 0:00:50]}  Ne1 {[%clk 0:00:49]} 24. Bh3+ {[%clk 0:00:32]}  f5 {[%clk 0:00:47]} 25. Ra1 {[%clk 0:00:32]}  Nc2 {[%clk 0:00:30]} 26. Rb1 {[%clk 0:00:18]}  Nd4 {[%clk 0:00:17]} 27. Nxd4 {[%clk 0:00:15]}  Bxb1 {[%clk 0:00:16]} 28. Bxf5+ {[%clk 0:00:15]}  Kxd6 {[%clk 0:00:16]} 29. Bf4+ {[%clk 0:00:14]}  Kd5 {[%clk 0:00:16]} 30. Bxb1 {[%clk 0:00:11]}  Bxd4 {[%clk 0:00:16]} 31. b3 {[%clk 0:00:10]}  Rc8 {[%clk 0:00:14]} 32. Bxh7 {[%clk 0:00:10]}  Be5 {[%clk 0:00:09]} 33. Be3 {[%clk 0:00:09]}  Bd4 {[%clk 0:00:08]} 34. Bf4 {[%clk 0:00:09]}  Be5 {[%clk 0:00:08]} 35. Bg5 {[%clk 0:00:09]}  Rc6 {[%clk 0:00:06]} 36. Bd3 {[%clk 0:00:07]}  Rc3 {[%clk 0:00:05]} 37. Bc4+ {[%clk 0:00:06]}  Kc5 {[%clk 0:00:04]} 38. h4 {[%clk 0:00:04]}  Bd4 {[%clk 0:00:03]} 39. h5 {[%clk 0:00:05]}  Rc2 {[%clk 0:00:03]} 40. Be3 {[%clk 0:00:04]}  Rxa2 {[%clk 0:00:03]} 41. Bxd4+ {[%clk 0:00:02]}  Kxd4 {[%clk 0:00:03]} 42. g4 {[%clk 0:00:03]}  Rd2 {[%clk 0:00:01]} 43. Kg2 {[%clk 0:00:03]}  Ke5 {[%clk 0:00:01]} 44. Kg3 {[%clk 0:00:03]}  Rd4 {[%clk 0:00:01]} 45. g5 {[%clk 0:00:02]}  Kf5 {[%clk 0:00:01]} 46. g6 {[%clk 0:00:02]}  Kg5 {[%clk 0:00:01]} 47. Be2 {[%clk 0:00:03]}  Rb4 {[%clk 0:00:01]} 48. Bd1 {[%clk 0:00:03]}  Kh6 {[%clk 0:00:01]} 49. f4 {[%clk 0:00:02]}  Rd4 {[%clk 0:00:02]} 50. Bc2 {[%clk 0:00:03]}  Rd2 {[%clk 0:00:03]} 51. Bf5 {[%clk 0:00:03]}  Rb2 {[%clk 0:00:03]} 52. Be6 {[%clk 0:00:02]}  a5 {[%clk 0:00:03]} 53. Kg4 {[%clk 0:00:02]}  Rc2 {[%clk 0:00:04]} 54. Bd5 {[%clk 0:00:02]}  Rc3 {[%clk 0:00:04]} 55. Be6 {[%clk 0:00:02]}  Rd3 {[%clk 0:00:04]} 56. f5 {[%clk 0:00:02]}  Re3 {[%clk 0:00:05]} 57. Bc4 {[%clk 0:00:02]}  Rc3 {[%clk 0:00:05]} 58. Kf4 {[%clk 0:00:02]}  Rxc4+ {[%clk 0:00:05]} 59. bxc4 {[%clk 0:00:02]}  a4 {[%clk 0:00:06]} 60. f6 {[%clk 0:00:01]}  a3 {[%clk 0:00:07]} 61. f7 {[%clk 0:00:01]}  a2 {[%clk 0:00:06]} 62. f8=Q {[%clk 0:00:02]}  a1=Q {[%clk 0:00:07]} 63. Qh8# {[%clk 0:00:03]} 1-0

[Event "January 2 Late 2024"]
[Site "https://www.chess.com"]
[Date "2024.01.02"]
[Round "7"]
[White "Olenik Campa, Rudi"]
[Black "Vujacic, Igor"]
[Result "1-0"]
[Board "96"]
[TimeControl "180+1"]
[WhiteFideId "14633264"]
[BlackFideId "932620"]
[WhiteElo "2596"]
[BlackElo "2444"]
[WhiteTeam "SLO"]
[BlackTeam "MNE"]
[WhiteClock "0:01:30"]
[BlackClock "0:00:00"]

1. e4 {[%clk 0:03:00]}  c5 {[%clk 0:02:59]} 2. Nf3 {[%clk 0:03:01]}  Nc6 {[%clk 0:02:59]} 3. Bb5 {[%clk 0:03:00]}  g6 {[%clk 0:03:00]} 4. Bxc6 {[%clk 0:03:00]}  dxc6 {[%clk 0:03:00]} 5. O-O {[%clk 0:03:00]}  Bg7 {[%clk 0:03:01]} 6. d3 {[%clk 0:03:01]}  Nf6 {[%clk 0:03:01]} 7. a4 {[%clk 0:03:01]}  Nd7 {[%clk 0:02:57]} 8. a5 {[%clk 0:03:01]}  e5 {[%clk 0:02:57]} 9. Na3 {[%clk 0:03:00]}  Qe7 {[%clk 0:02:56]} 10. Nc4 {[%clk 0:03:00]}  Nf8 {[%clk 0:02:54]} 11. Be3 {[%clk 0:02:59]}  Bg4 {[%clk 0:02:54]} 12. h3 {[%clk 0:02:59]}  Bxf3 {[%clk 0:02:54]} 13. Qxf3 {[%clk 0:03:00]}  Ne6 {[%clk 0:02:53]} 14. c3 {[%clk 0:03:00]}  Rd8 {[%clk 0:02:52]} 15. Rfd1 {[%clk 0:02:59]}  O-O {[%clk 0:02:51]} 16. Qg3 {[%clk 0:02:59]}  f5 {[%clk 0:02:30]} 17. exf5 {[%clk 0:03:00]}  gxf5 {[%clk 0:02:31]} 18. Bh6 {[%clk 0:03:00]}  Rd5 {[%clk 0:01:38]} 19. Re1 {[%clk 0:02:54]}  f4 {[%clk 0:01:14]} 20. Qg4 {[%clk 0:02:54]}  Kh8 {[%clk 0:01:00]} 21. Bxg7+ {[%clk 0:02:49]}  Nxg7 {[%clk 0:01:01]} 22. d4 {[%clk 0:02:47]}  cxd4 {[%clk 0:00:46]} 23. cxd4 {[%clk 0:02:47]}  Rxd4 {[%clk 0:00:33]} 24. Nxe5 {[%clk 0:02:45]}  Qe6 {[%clk 0:00:32]} 25. Qxe6 {[%clk 0:02:22]}  Nxe6 {[%clk 0:00:33]} 26. Nxc6 {[%clk 0:02:23]}  bxc6 {[%clk 0:00:30]} 27. Rxe6 {[%clk 0:02:22]}  Rd2 {[%clk 0:00:30]} 28. Rxc6 {[%clk 0:02:18]}  Rxb2 {[%clk 0:00:30]} 29. Rc7 {[%clk 0:02:19]}  f3 {[%clk 0:00:28]} 30. g3 {[%clk 0:02:08]}  a6 {[%clk 0:00:22]} 31. Ra7 {[%clk 0:01:58]}  Re8 {[%clk 0:00:07]} 32. Rd1 {[%clk 0:01:56]}  Rbe2 {[%clk 0:00:06]} 33. Kf1 {[%clk 0:01:48]}  R2e6 {[%clk 0:00:05]} 34. g4 {[%clk 0:01:37]}  Kg8 {[%clk 0:00:05]} 35. Kg1 {[%clk 0:01:37]}  Re2 {[%clk 0:00:02]} 36. Rxa6 {[%clk 0:01:34]}  Rc2 {[%clk 0:00:00]} 37. Ra7 {[%clk 0:01:30]} 1-0

[Event "January 2 Late 2024"]
[Site "https://www.chess.com"]
[Date "2024.01.02"]
[Round "7"]
[White "Gontcharov, Vladislav"]
[Black "Bellissimo, Joseph F."]
[Result "1-0"]
[Board "97"]
[TimeControl "180+1"]
[WhiteFideId "4123492"]
[BlackFideId "2609843"]
[WhiteElo "2591"]
[BlackElo "2437"]
[WhiteTeam "RUS"]
[BlackTeam "CAN"]
[WhiteClock "0:00:10"]
[BlackClock "0:00:22"]

1. e4 {[%clk 0:03:00]}  e6 {[%clk 0:02:57]} 2. d4 {[%clk 0:02:59]}  d5 {[%clk 0:02:58]} 3. Nc3 {[%clk 0:02:59]}  Nf6 {[%clk 0:02:58]} 4. e5 {[%clk 0:02:57]}  Nfd7 {[%clk 0:02:58]} 5. Nf3 {[%clk 0:02:57]}  c5 {[%clk 0:02:58]} 6. Ne2 {[%clk 0:02:56]}  Nc6 {[%clk 0:02:58]} 7. c3 {[%clk 0:02:56]}  f6 {[%clk 0:02:58]} 8. exf6 {[%clk 0:02:52]}  Qxf6 {[%clk 0:02:55]} 9. Be3 {[%clk 0:02:44]}  h6 {[%clk 0:02:54]} 10. Ng3 {[%clk 0:02:41]}  cxd4 {[%clk 0:02:51]} 11. Nxd4 {[%clk 0:02:36]}  Bd6 {[%clk 0:02:48]} 12. Bb5 {[%clk 0:02:08]}  Nce5 {[%clk 0:02:22]} 13. O-O {[%clk 0:01:59]}  a6 {[%clk 0:02:19]} 14. Be2 {[%clk 0:01:55]}  O-O {[%clk 0:02:18]} 15. f4 {[%clk 0:01:49]}  Nc6 {[%clk 0:02:15]} 16. Bg4 {[%clk 0:01:38]}  e5 {[%clk 0:02:09]} 17. Ne6 {[%clk 0:01:32]}  exf4 {[%clk 0:01:52]} 18. Nxf8 {[%clk 0:01:26]}  Nxf8 {[%clk 0:01:49]} 19. Bxc8 {[%clk 0:01:24]}  Rxc8 {[%clk 0:01:47]} 20. Qxd5+ {[%clk 0:01:24]}  Kh8 {[%clk 0:01:46]} 21. Nh5 {[%clk 0:01:15]}  Qh4 {[%clk 0:01:43]} 22. Nxf4 {[%clk 0:00:58]}  Rd8 {[%clk 0:01:35]} 23. Qf3 {[%clk 0:00:46]}  Ne5 {[%clk 0:01:33]} 24. Qh3 {[%clk 0:00:45]}  Qe7 {[%clk 0:01:29]} 25. Rae1 {[%clk 0:00:44]}  Qc7 {[%clk 0:01:28]} 26. Kh1 {[%clk 0:00:42]}  Nh7 {[%clk 0:01:24]} 27. Bd4 {[%clk 0:00:41]}  Ng5 {[%clk 0:01:24]} 28. Qh5 {[%clk 0:00:40]}  Nef7 {[%clk 0:01:18]} 29. Qg6 {[%clk 0:00:30]}  Be5 {[%clk 0:01:07]} 30. Bxe5 {[%clk 0:00:24]}  Nxe5 {[%clk 0:01:08]} 31. Qf5 {[%clk 0:00:20]}  Nc4 {[%clk 0:00:58]} 32. h4 {[%clk 0:00:20]}  Nd6 {[%clk 0:00:53]} 33. Ng6+ {[%clk 0:00:19]}  Kg8 {[%clk 0:00:52]} 34. Qd5+ {[%clk 0:00:18]}  Ngf7 {[%clk 0:00:51]} 35. Re7 {[%clk 0:00:16]}  Qc6 {[%clk 0:00:43]} 36. Qxc6 {[%clk 0:00:16]}  bxc6 {[%clk 0:00:44]} 37. Rd1 {[%clk 0:00:15]}  Rb8 {[%clk 0:00:44]} 38. b3 {[%clk 0:00:14]}  Rb5 {[%clk 0:00:41]} 39. c4 {[%clk 0:00:12]}  Rh5 {[%clk 0:00:36]} 40. g4 {[%clk 0:00:12]}  Ra5 {[%clk 0:00:35]} 41. Rd2 {[%clk 0:00:12]}  Kh7 {[%clk 0:00:34]} 42. h5 {[%clk 0:00:11]}  Rxh5+ {[%clk 0:00:27]} 43. gxh5 {[%clk 0:00:11]}  a5 {[%clk 0:00:27]} 44. c5 {[%clk 0:00:11]}  Nf5 {[%clk 0:00:24]} 45. Rxf7 {[%clk 0:00:11]}  Nh4 {[%clk 0:00:25]} 46. Nxh4 {[%clk 0:00:10]}  a4 {[%clk 0:00:24]} 47. Rdd7 {[%clk 0:00:09]}  a3 {[%clk 0:00:23]} 48. Rxg7+ {[%clk 0:00:09]}  Kh8 {[%clk 0:00:22]} 49. Ng6# {[%clk 0:00:10]} 1-0

[Event "January 2 Late 2024"]
[Site "https://www.chess.com"]
[Date "2024.01.02"]
[Round "7"]
[White "Travkina, Anastasia"]
[Black "Cervantes Landeiro, Thalia"]
[Result "1-0"]
[Board "100"]
[TimeControl "180+1"]
[WhiteFideId "24129151"]
[BlackFideId "3520498"]
[WhiteElo "2424"]
[BlackElo "2565"]
[WhiteTeam "RUS"]
[BlackTeam "USA"]
[WhiteClock "0:00:17"]
[BlackClock "0:00:00"]

1. e4 {[%clk 0:03:00]}  c5 {[%clk 0:02:59]} 2. Nf3 {[%clk 0:03:01]}  d6 {[%clk 0:02:58]} 3. d4 {[%clk 0:03:01]}  cxd4 {[%clk 0:02:59]} 4. Nxd4 {[%clk 0:03:02]}  Nf6 {[%clk 0:03:00]} 5. Nc3 {[%clk 0:03:03]}  a6 {[%clk 0:03:00]} 6. Bg5 {[%clk 0:03:04]}  Nbd7 {[%clk 0:02:59]} 7. f4 {[%clk 0:03:04]}  Qc7 {[%clk 0:02:50]} 8. Qf3 {[%clk 0:03:02]}  h6 {[%clk 0:02:45]} 9. Bxf6 {[%clk 0:03:02]}  Nxf6 {[%clk 0:02:44]} 10. f5 {[%clk 0:03:01]}  Qc5 {[%clk 0:02:43]} 11. O-O-O {[%clk 0:03:02]}  g5 {[%clk 0:02:41]} 12. fxg6 {[%clk 0:03:02]}  Bg4 {[%clk 0:02:41]} 13. gxf7+ {[%clk 0:03:01]}  Kxf7 {[%clk 0:02:41]} 14. Qd3 {[%clk 0:02:53]}  Bxd1 {[%clk 0:02:41]} 15. Qxd1 {[%clk 0:02:53]}  Bg7 {[%clk 0:02:11]} 16. Be2 {[%clk 0:02:52]}  Rhe8 {[%clk 0:01:53]} 17. Rf1 {[%clk 0:02:47]}  Kg8 {[%clk 0:01:52]} 18. Rf5 {[%clk 0:02:35]}  Qc8 {[%clk 0:01:44]} 19. Bh5 {[%clk 0:02:28]}  Nxh5 {[%clk 0:01:42]} 20. Qxh5 {[%clk 0:02:29]}  Rf8 {[%clk 0:01:41]} 21. Nd5 {[%clk 0:02:26]}  Qe8 {[%clk 0:01:13]} 22. Qg4 {[%clk 0:02:18]}  Kh8 {[%clk 0:00:48]} 23. Ne6 {[%clk 0:02:13]}  Rg8 {[%clk 0:00:45]} 24. Qh4 {[%clk 0:02:03]}  Qg6 {[%clk 0:00:35]} 25. Ndf4 {[%clk 0:01:33]}  Qh7 {[%clk 0:00:23]} 26. Nxg7 {[%clk 0:01:08]}  Qxg7 {[%clk 0:00:23]} 27. Rh5 {[%clk 0:01:07]}  Kh7 {[%clk 0:00:22]} 28. g4 {[%clk 0:00:46]}  Rh8 {[%clk 0:00:09]} 29. g5 {[%clk 0:00:38]}  Raf8 {[%clk 0:00:05]} 30. Ne6 {[%clk 0:00:18]}  Rf1+ {[%clk 0:00:05]} 31. Kd2 {[%clk 0:00:19]}  Rf2+ {[%clk 0:00:01]} 32. Qxf2 {[%clk 0:00:18]}  Qg6 {[%clk 0:00:00]} 33. Rxh6+ {[%clk 0:00:17]} 1-0